bitfinex-derivatives/quotes_BTCF0:USTF0_20250822
["timestamp","ask_amount","ask_price","bid_price","bid_amount"]
[1755873392808,0.13975508,115600.0,115590.0,0.72883]
[1755873393004,0.02249508,115600.0,115590.0,0.72883]
[1755873393211,0.13975508,115600.0,115590.0,0.72883]
[1755873393413,0.02249508,115600.0,115590.0,0.72883]
[1755873393818,0.23559508,115600.0,115590.0,0.72883]
[1755873394012,0.5065551,115600.0,115590.0,0.72883]
[1755873394209,0.02249508,115600.0,115590.0,0.74686481]
[1755873394412,0.02249508,115600.0,115590.0,0.83339381]
[1755873394627,0.5065551,115600.0,115590.0,0.74686481]
[1755873395011,0.02249508,115600.0,115590.0,0.83339381]
[1755873395212,0.02249508,115600.0,115590.0,0.74686481]
[1755873395421,0.02249508,115600.0,115590.0,0.83339421]
[1755873395809,0.8104551,115600.0,115590.0,0.16361481]
[1755873396018,0.9277151,115600.0,115590.0,0.16361481]
[1755873396220,0.9277151,115600.0,115590.0,0.49686481]
[1755873396413,0.69365508,115600.0,115590.0,0.0002]
[1755873396721,1.2642371,115600.0,115590.0,0.0002]
[1755873397230,2.06557708,115600.0,115590.0,0.0002]
[1755873397522,1.61179508,115600.0,115590.0,0.47883]
[1755873397825,1.30789508,115600.0,115590.0,0.72883]
[1755873398013,1.7919551,115600.0,115590.0,0.72883]
[1755873398208,2.3672751,115600.0,115590.0,0.47883]
[1755873398419,2.4537969,115600.0,115590.0,0.0002]
[1755873398914,0.32532,115580.0,115560.0,0.36423185]
[1755873399111,0.80938002,115570.0,115560.0,0.38203143]
[1755873399316,0.89592432,115570.0,115560.0,0.38203143]
[1755873399614,0.11726,115570.0,115560.0,0.46680143]
[1755873400320,0.2038042,115570.0,115560.0,0.46680143]
[1755873400517,0.68786422,115570.0,115560.0,0.46780143]
[1755873400715,0.75667422,115570.0,115560.0,0.46780143]
[1755873401014,0.32532,115570.0,115560.0,0.38303143]
[1755873401224,2.09186002,115580.0,115570.0,0.29643]
[1755873401522,1.28248,115580.0,115570.0,0.3812]
[1755873401724,0.48406002,115590.0,115560.0,0.17395253]
[1755873401913,1.30093508,115600.0,115590.0,0.3812]
[1755873403618,1.30393508,115600.0,115590.0,0.3812]
[1755873403816,1.30413508,115600.0,115590.0,0.3814]
[1755873404023,2.21325032,115600.0,115590.0,0.3814]
[1755873404326,0.91775887,115600.0,115590.0,0.14558]
[1755873404520,1.16775887,115600.0,115590.0,0.0002]
[1755873404726,0.68433658,115600.0,115590.0,0.0002]
[1755873404926,1.16775887,115600.0,115590.0,0.0002]
[1755873405129,0.68433658,115600.0,115590.0,0.0002]
[1755873405327,1.08123737,115600.0,115590.0,0.0002]
[1755873405828,0.12046,115600.0,115590.0,0.3814]
[1755873406021,0.4150414,115600.0,115590.0,0.3814]
[1755873406217,0.89846369,115600.0,115590.0,0.0002]
[1755873406822,1.14846369,115600.0,115590.0,0.0002]
[1755873407029,0.6650414,115600.0,115590.0,0.0002]
[1755873407729,0.32852,115600.0,115590.0,0.2875]
[1755873408230,0.0032,115600.0,115590.0,0.71977]
[1755873409526,0.42362,115600.0,115590.0,0.71977]
[1755873409919,0.0032,115600.0,115590.0,0.71977]
[1755873410124,0.11678,115600.0,115590.0,0.71977]
[1755873410324,0.7601412,115600.0,115590.0,0.0002]
[1755873410535,2.0459812,115600.0,115590.0,0.0002]
[1755873410926,1.95946,115600.0,115590.0,0.0002]
[1755873411129,0.07201,115600.0,115590.0,0.46977]
[1755873411318,0.3965603,115600.0,115590.0,0.46977]
[1755873411523,0.28351,115600.0,115590.0,0.46977]
[1755873411719,0.5101403,115600.0,115590.0,0.46977]
[1755873412036,0.20892,115580.0,115570.0,0.3735387]
[1755873412630,0.20892,115590.0,115580.0,0.08803]
[1755873412827,0.20892,115590.0,115580.0,0.22911]
[1755873413135,0.20892,115590.0,115580.0,0.32335]
[1755873413330,0.14011,115590.0,115580.0,0.32335]
[1755873413724,0.14211,115590.0,115580.0,0.32335]
[1755873413932,0.002,115590.0,115580.0,0.46957]
[1755873414732,0.1553449,115580.0,115560.0,0.31471143]
[1755873414931,0.62353229,115570.0,115560.0,0.48736958]
[1755873415125,0.2268513,115570.0,115560.0,0.48756958]
[1755873415436,0.0002,115570.0,115560.0,0.48756958]
[1755873415736,0.0002,115570.0,115560.0,0.73756958]
[1755873416431,0.02089473,115590.0,115580.0,0.46957]
[1755873416734,0.01889473,115590.0,115580.0,0.46957]
[1755873417141,0.31487083,115590.0,115580.0,0.53938835]
[1755873417444,0.22834473,115590.0,115580.0,0.30513835]
[1755873417647,0.01889473,115590.0,115580.0,0.53938835]
[1755873418041,0.24606053,115590.0,115580.0,0.53938835]
[1755873418344,0.56487053,115590.0,115580.0,0.16405835]
[1755873418646,0.47834473,115590.0,115580.0,0.30513835]
[1755873418836,0.47834473,115590.0,115580.0,0.53938835]
[1755873419232,0.02089473,115590.0,115580.0,0.78938835]
[1755873419639,0.16100473,115590.0,115580.0,0.78938835]
[1755873419840,0.02109473,115590.0,115580.0,0.78958835]
[1755873420146,0.14011,115620.0,115610.0,0.46957]
[1755873420347,0.26434,115630.0,115620.0,0.46957]
[1755873420843,0.3508361,115630.0,115620.0,0.09424]
[1755873421147,0.23022,115620.0,115610.0,0.46957]
[1755873421647,0.2643,115620.0,115610.0,0.46957]
[1755873421946,4e-05,115630.0,115610.0,0.3622231]
[1755873422144,4e-05,115630.0,115620.0,0.46957]
[1755873422544,4e-05,115630.0,115620.0,0.71957]
[1755873423840,0.00404,115630.0,115620.0,0.71957]
[1755873424039,0.00424,115630.0,115620.0,0.71977]
[1755873425149,0.01958277,115650.0,115640.0,0.46957]
[1755873426347,0.02458277,115650.0,115640.0,0.46957]
[1755873426746,0.09098277,115650.0,115640.0,0.71957]
[1755873427050,0.02458277,115650.0,115640.0,0.71957]
[1755873427250,0.02158277,115650.0,115640.0,0.71957]
[1755873428045,0.02158277,115650.0,115640.0,0.98811069]
[1755873428250,0.02178277,115650.0,115640.0,0.98831069]
[1755873428442,0.83938424,115680.0,115660.0,0.14108]
[1755873428647,0.85704034,115670.0,115660.0,0.23532]
[1755873428949,0.06881,115680.0,115660.0,0.23532]
[1755873429249,0.35124277,115690.0,115680.0,0.46957]
[1755873429448,1.02083821,115690.0,115680.0,0.32849]
[1755873429653,1.02083821,115690.0,115680.0,0.34644646]
[1755873429847,0.35124277,115690.0,115680.0,0.48752646]
[1755873430043,0.15939277,115690.0,115680.0,0.73752646]
[1755873430243,0.01928277,115690.0,115680.0,0.73752646]
[1755873431145,1.22451821,115690.0,115680.0,0.48752646]
[1755873431348,1.27183821,115690.0,115680.0,0.48752646]
[1755873431548,1.27223821,115690.0,115680.0,0.48772646]
[1755873431747,0.41079277,115690.0,115680.0,0.48772646]
[1755873432052,0.02068277,115690.0,115680.0,0.73772646]
[1755873432250,0.0864843,115700.0,115680.0,0.73772646]
[1755873432251,4e-05,115700.0,115690.0,0.46957]
[1755873432653,4e-05,115700.0,115690.0,0.71957]
[1755873433347,0.2265937,115700.0,115690.0,0.46957]
[1755873433552,0.4377037,115700.0,115690.0,0.46957]
[1755873433853,0.35326,115700.0,115690.0,0.46957]
[1755873434062,0.60326,115700.0,115690.0,0.46957]
[1755873434356,0.00104,115700.0,115690.0,0.46957]
[1755873434656,0.00104,115700.0,115690.0,0.8060212]
[1755873435161,0.14011,115720.0,115710.0,0.09424]
[1755873435359,0.22818,115730.0,115720.0,0.46957]
[1755873435550,0.2085,115740.0,115730.0,0.37533]
[1755873435865,0.02003,115740.0,115730.0,0.5559913]
[1755873436153,0.02043,115740.0,115730.0,0.71977]
[1755873436359,0.01893697,115750.0,115730.0,0.72037]
[1755873436659,0.01893697,115750.0,115740.0,0.46957]
[1755873437049,0.31424337,115750.0,115740.0,0.46957]
[1755873437249,0.24545337,115750.0,115740.0,0.46957]
[1755873437450,0.31017337,115750.0,115740.0,0.46957]
[1755873437645,0.40889337,115750.0,115740.0,0.48743015]
[1755873438252,0.22376697,115750.0,115740.0,0.48743015]
[1755873438454,0.15904697,115750.0,115740.0,0.48843015]
[1755873438758,0.24545337,115750.0,115740.0,0.48843015]
[1755873439260,0.74455337,115750.0,115740.0,0.34735015]
[1755873439458,0.74455337,115750.0,115740.0,0.49293015]
[1755873439645,0.74495337,115750.0,115740.0,0.49313015]
[1755873440658,1.22723616,115750.0,115740.0,0.49313015]
[1755873440856,0.63961,115750.0,115740.0,0.56323219]
[1755873441360,0.0868063,115750.0,115740.0,0.81223219]
[1755873441554,0.2881663,115750.0,115740.0,0.81823219]
[1755873441758,0.2881663,115750.0,115740.0,0.56823219]
[1755873441759,0.4725463,115750.0,115740.0,0.56823219]
[1755873441959,0.7225463,115750.0,115740.0,0.56823219]
[1755873442758,0.63614,115750.0,115740.0,0.56823219]
[1755873442962,0.7225463,115750.0,115740.0,0.56823219]
[1755873443156,0.7225463,115750.0,115740.0,0.56223219]
[1755873443464,1.20482909,115750.0,115740.0,0.56523219]
[1755873443853,0.7225463,115750.0,115740.0,0.56523219]
[1755873444358,0.2504,115750.0,115740.0,0.56523219]
[1755873445363,1.11843949,115750.0,115740.0,0.56523219]
[1755873445565,0.61932279,115750.0,115740.0,0.81523219]
[1755873445763,0.70572949,115750.0,115740.0,0.81523219]
[1755873445959,1.20409949,115750.0,115740.0,0.41965219]
[1755873446164,1.20409949,115750.0,115740.0,0.07330204]
[1755873446356,0.7218167,115750.0,115740.0,0.07330204]
[1755873446556,1.20409949,115750.0,115740.0,0.07330204]
[1755873446756,1.20489949,115750.0,115740.0,0.07330204]
[1755873447158,2.50693949,115750.0,115740.0,0.07330204]
[1755873447365,2.52623106,115750.0,115740.0,0.07330204]
[1755873447666,2.52543106,115750.0,115740.0,0.07330204]
[1755873447862,1.22339106,115750.0,115740.0,0.21888204]
[1755873448161,0.97339106,115750.0,115740.0,0.16344204]
[1755873448360,1.22419106,115750.0,115740.0,0.00931204]
[1755873448566,0.30873,115720.0,115710.0,0.47292]
[1755873448760,0.2223,115720.0,115710.0,0.47292]
[1755873448967,0.13664,115720.0,115710.0,0.47292]
[1755873449561,1.86406279,115730.0,115710.0,0.47292]
[1755873449763,0.0864169,115740.0,115720.0,0.47292]
[1755873449958,0.13664,115740.0,115730.0,0.47292]
[1755873450370,0.24159157,115750.0,115740.0,0.47292]
[1755873450560,0.15593157,115750.0,115740.0,0.47292]
[1755873450761,0.01929157,115750.0,115740.0,0.47292]
[1755873451470,0.14578117,115780.0,115770.0,0.47292]
[1755873451769,0.00914117,115780.0,115770.0,0.40286687]
[1755873451963,0.00954117,115780.0,115770.0,0.40306687]
[1755873452367,0.00954117,115780.0,115770.0,0.65306687]
[1755873452565,0.00954117,115780.0,115770.0,0.65386687]
[1755873452864,2.86408686,115800.0,115780.0,0.23496]
[1755873453059,2.33236169,115800.0,115790.0,0.47292]
[1755873453263,3.00072326,115800.0,115790.0,0.47292]
[1755873453454,2.91435446,115800.0,115790.0,0.47292]
[1755873453659,3.00072326,115800.0,115790.0,0.47292]
[1755873453860,2.33236169,115800.0,115790.0,0.54288121]
[1755873454066,2.33236169,115800.0,115790.0,0.56019717]
[1755873454565,2.28209049,115800.0,115790.0,0.81019717]
[1755873454762,2.41873049,115800.0,115790.0,0.81019717]
[1755873454964,3.31556776,115800.0,115790.0,0.32523717]
[1755873455159,3.31556776,115800.0,115790.0,0.08727717]
[1755873455355,0.40061,115790.0,115780.0,0.47392]
[1755873455558,0.21623,115790.0,115780.0,0.47392]
[1755873455770,0.4869861,115790.0,115780.0,0.47392]
[1755873455970,0.4869861,115790.0,115780.0,0.48896]
[1755873456268,0.96897337,115790.0,115780.0,0.48692]
[1755873456665,0.3090761,115790.0,115780.0,0.72312]
[1755873456863,0.0004,115790.0,115780.0,0.74099911]
[1755873457873,0.0004,115790.0,115780.0,0.81150538]
[1755873458168,2.17675,115800.0,115790.0,0.47292]
[1755873459471,2.17675,115800.0,115790.0,0.72292]
[1755873459770,2.0287,115800.0,115790.0,0.72292]
[1755873460472,2.0287,115800.0,115790.0,0.47292]
[1755873461367,2.0287,115800.0,115790.0,0.72292]
[1755873461566,2.0291,115800.0,115790.0,0.72312]
[1755873461761,1.12526,115800.0,115790.0,1.29188347]
[1755873461972,0.15581409,115830.0,115810.0,0.0863558]
[1755873462160,0.62490038,115830.0,115810.0,0.0863558]
[1755873462359,0.62490038,115830.0,115810.0,0.0863613]
[1755873462669,4e-05,115850.0,115830.0,0.0008]
[1755873462863,4e-05,115850.0,115840.0,0.0863389]
[1755873463066,4e-05,115850.0,115840.0,0.3371389]
[1755873463463,0.33890434,115870.0,115860.0,0.086324]
[1755873463658,0.20226434,115870.0,115860.0,0.336324]
[1755873464173,0.20226434,115870.0,115860.0,0.086324]
[1755873464672,0.13664,115870.0,115860.0,0.11788726]
[1755873464871,4e-05,115880.0,115860.0,0.11788726]
[1755873465064,0.0004,115870.0,115860.0,0.11808726]
[1755873465374,0.13704,115870.0,115860.0,0.11808726]
[1755873465573,0.13704,115870.0,115860.0,0.28176356]
[1755873465774,0.23576,115870.0,115860.0,0.28176356]
[1755873466072,0.13704,115870.0,115860.0,0.28176356]
[1755873466273,0.60612629,115870.0,115860.0,0.03176356]
[1755873466464,0.93327629,115870.0,115860.0,0.03176356]
[1755873466665,0.23536,115840.0,115830.0,0.01773648]
[1755873466966,0.93287629,115840.0,115830.0,0.01773648]
[1755873467365,1.17049519,115840.0,115830.0,0.01773648]
[1755873467567,1.08415629,115840.0,115830.0,0.05012494]
[1755873467760,0.13664,115840.0,115830.0,0.34239494]
[1755873467965,0.14861,115850.0,115840.0,0.01051]
[1755873468171,0.37853,115850.0,115840.0,0.01051]
[1755873468370,0.23507,115850.0,115840.0,0.0968489]
[1755873468562,0.14861,115850.0,115840.0,0.29227]
[1755873468768,0.93394769,115850.0,115830.0,0.05012494]
[1755873468968,0.29207,115840.0,115830.0,0.06063494]
[1755873469577,0.84761629,115840.0,115830.0,0.06063494]
[1755873469875,0.84801629,115840.0,115830.0,0.06083494]
[1755873470066,0.93435519,115840.0,115830.0,0.05032494]
[1755873470462,0.2298064,115830.0,115820.0,0.01766777]
[1755873470666,0.23507,115790.0,115780.0,0.12837547]
[1755873470866,0.4657062,115790.0,115780.0,0.04893994]
[1755873471069,1.09761629,115790.0,115780.0,0.03127447]
[1755873471275,0.71908629,115790.0,115760.0,0.01767302]
[1755873471572,0.14861,115770.0,115760.0,0.04943302]
[1755873471770,0.14861,115770.0,115760.0,0.11995838]
[1755873471964,0.14861,115770.0,115760.0,0.07781302]
[1755873472169,0.14861,115770.0,115760.0,0.04605302]
[1755873472369,0.37753,115770.0,115760.0,0.04605302]
[1755873472565,0.22992,115790.0,115760.0,0.41621162]
[1755873472771,0.22992,115790.0,115780.0,0.02838]
[1755873472970,0.46908629,115790.0,115780.0,0.02838]
[1755873473172,0.22992,115800.0,115790.0,0.02838]
[1755873473366,0.01901758,115810.0,115790.0,0.1501962]
[1755873473571,0.48810387,115810.0,115800.0,0.18372]
[1755873473875,0.0004,115800.0,115790.0,0.2702962]
[1755873474176,0.0004,115800.0,115790.0,0.3040562]
[1755873474475,0.0004,115800.0,115790.0,1.5628962]
[1755873475277,0.0004,115800.0,115790.0,1.5668962]
[1755873475569,0.14901,115800.0,115790.0,1.5668962]
[1755873475771,0.14901,115800.0,115790.0,1.5331362]
[1755873475971,0.29247,115800.0,115790.0,1.5331362]
[1755873476170,0.29247,115800.0,115790.0,1.5361362]
[1755873476475,0.84801629,115800.0,115790.0,1.44976]
[1755873477172,0.84801629,115800.0,115790.0,1.5361362]
[1755873477477,0.61809629,115800.0,115790.0,1.5361362]
[1755873477870,0.61809629,115800.0,115790.0,0.2772962]
[1755873478071,0.84801629,115800.0,115790.0,0.07734778]
[1755873478272,0.84801629,115800.0,115790.0,0.21862778]
[1755873478465,0.84801629,115800.0,115790.0,0.34744398]
[1755873478662,0.14901,115800.0,115790.0,0.63120398]
[1755873478867,0.0004,115800.0,115790.0,0.63120398]
[1755873479272,0.14901,115800.0,115790.0,0.63120398]
[1755873479469,0.14901,115800.0,115790.0,0.34744398]
[1755873479777,0.23547,115800.0,115790.0,1.60584408]
[1755873479976,0.23547,115800.0,115790.0,1.51946778]
[1755873480172,0.14901,115800.0,115790.0,1.55322778]
[1755873480376,0.84801629,115800.0,115790.0,1.33574778]
[1755873480978,0.84801629,115800.0,115790.0,0.30500408]
[1755873481167,0.84801629,115800.0,115790.0,0.26106778]
[1755873481370,0.14901,115800.0,115790.0,0.26106778]
[1755873481673,0.0004,115800.0,115790.0,1.11279135]
[1755873482073,0.0004,115800.0,115790.0,0.63120408]
[1755873482874,0.84801629,115800.0,115790.0,0.07734778]
[1755873483172,1.18438509,115800.0,115790.0,0.07734778]
[1755873483374,0.08646,115790.0,115770.0,1.25808]
[1755873483574,0.61769629,115790.0,115780.0,0.1288237]
[1755873483775,0.61769629,115790.0,115780.0,0.18372]
[1755873483976,0.29207,115780.0,115770.0,0.04244]
[1755873484275,0.14861,115780.0,115770.0,1.70939785]
[1755873484470,0.61769629,115780.0,115770.0,1.6391012]
[1755873484670,0.84761629,115780.0,115770.0,1.5279912]
[1755873485070,0.84761629,115780.0,115770.0,1.6411012]
[1755873485071,0.61769629,115780.0,115770.0,1.6411012]
[1755873485281,0.60769629,115780.0,115770.0,1.6411012]
[1755873485473,0.46908629,115780.0,115770.0,1.6411012]
[1755873485666,0.32327,115800.0,115790.0,0.23741]
[1755873485866,0.32327,115800.0,115790.0,0.27985]
[1755873486076,0.79235629,115800.0,115790.0,0.3662263]
[1755873486274,0.79235629,115800.0,115790.0,0.27985]
[1755873486474,0.32327,115790.0,115780.0,1.62395]
[1755873486679,0.32367,115790.0,115780.0,1.62415]
[1755873486980,0.79275629,115790.0,115780.0,0.0002]
[1755873487173,0.79275629,115790.0,115780.0,0.28005]
[1755873487372,0.71144629,115790.0,115780.0,0.4875437]
[1755873488072,0.21809629,115790.0,115780.0,0.4873437]
[1755873488278,0.22009629,115790.0,115780.0,0.7373437]
[1755873488474,0.002,115790.0,115780.0,0.7381437]
[1755873488675,0.22992,115820.0,115810.0,0.0863613]
[1755873488878,0.36755469,115820.0,115810.0,0.42835]
[1755873489182,0.04428469,115820.0,115810.0,0.5147113]
[1755873489576,0.16247335,115830.0,115820.0,0.0863539]
[1755873489784,0.20675804,115830.0,115820.0,1.68559]
[1755873490382,0.30010804,115830.0,115820.0,1.68559]
[1755873490682,0.06329804,115830.0,115820.0,1.7719439]
[1755873491378,0.44871804,115830.0,115820.0,1.68559]
[1755873491681,0.53557804,115830.0,115820.0,1.68579]
[1755873491882,0.53657804,115830.0,115820.0,1.68579]
[1755873493271,0.29976804,115830.0,115820.0,1.68579]
[1755873493473,0.21330804,115830.0,115820.0,1.68579]
[1755873493686,0.45011804,115830.0,115820.0,1.68579]
[1755873494887,0.30665804,115830.0,115820.0,1.68579]
[1755873495079,0.45011804,115830.0,115820.0,1.68579]
[1755873495279,0.30665804,115830.0,115820.0,1.68579]
[1755873495683,0.53657804,115830.0,115820.0,1.68579]
[1755873495881,0.53657804,115830.0,115820.0,1.53729]
[1755873496183,0.53657804,115830.0,115820.0,1.68579]
[1755873496979,0.53657804,115830.0,115820.0,1.49485]
[1755873497580,0.78657804,115830.0,115820.0,1.25568]
[1755873498085,0.87372414,115830.0,115820.0,1.25568]
[1755873498284,1.36814933,115830.0,115820.0,1.25568]
[1755873498483,0.78657804,115830.0,115820.0,1.40238]
[1755873498786,0.78657804,115830.0,115820.0,1.44482]
[1755873498987,0.78365804,115830.0,115820.0,1.59116]
[1755873499187,0.78365804,115830.0,115820.0,0.0002]
[1755873499579,1.36522933,115830.0,115820.0,0.0002]
[1755873499984,1.45237543,115830.0,115820.0,0.0002]
[1755873500180,0.46674,115800.0,115790.0,0.18914]
[1755873500379,0.46674,115800.0,115790.0,1.54185]
[1755873500787,0.46674,115800.0,115790.0,1.6282259]
[1755873500987,0.46674,115800.0,115790.0,1.54185]
[1755873501385,0.42891,115800.0,115790.0,1.25472]
[1755873501589,0.17891,115810.0,115800.0,0.28705]
[1755873501786,0.17891,115820.0,115810.0,0.28705]
[1755873502085,0.14729,115820.0,115810.0,2.35580229]
[1755873502290,0.25,115820.0,115810.0,2.35580229]
[1755873502481,0.25,115820.0,115810.0,0.519751]
[1755873502687,0.25,115820.0,115810.0,1.773991]
[1755873502688,0.49195,115820.0,115810.0,1.773991]
[1755873502885,0.49195,115820.0,115810.0,1.68763]
[1755873503399,0.39729,115820.0,115810.0,1.773991]
[1755873503580,0.0004,115820.0,115810.0,2.60576229]
[1755873503983,0.0004,115820.0,115810.0,2.024191]
[1755873504182,0.24235,115820.0,115810.0,1.93783]
[1755873504494,0.71714,115820.0,115810.0,1.54149]
[1755873504695,0.39969,115820.0,115810.0,1.774191]
[1755873505084,0.40069,115820.0,115810.0,1.774191]
[1755873505290,0.63589,115820.0,115810.0,1.774191]
[1755873505491,0.15069,115820.0,115810.0,1.774191]
[1755873505685,0.0034,115820.0,115810.0,2.60576229]
[1755873505890,0.0034,115820.0,115810.0,2.024191]
[1755873506385,0.15069,115820.0,115810.0,2.024191]
[1755873507390,0.44065293,115840.0,115830.0,0.31314]
[1755873507586,0.44065293,115840.0,115820.0,0.14634]
[1755873507795,0.24195,115820.0,115810.0,1.7988009]
[1755873508094,0.38249,115820.0,115810.0,1.71244]
[1755873508286,0.38249,115820.0,115810.0,1.7988009]
[1755873509293,0.46674,115820.0,115810.0,1.96244]
[1755873509689,0.46674,115820.0,115810.0,1.7988009]
[1755873509883,0.46674,115820.0,115810.0,0.45948]
[1755873510092,0.46674,115820.0,115810.0,1.46755]
[1755873510395,0.46674,115810.0,115800.0,1.7118]
[1755873510598,0.46714,115810.0,115800.0,1.56566]
[1755873510904,1.29951129,115810.0,115800.0,1.25252]
[1755873511195,0.71714,115810.0,115800.0,0.1469]
[1755873511395,0.71714,115810.0,115800.0,0.0002]
[1755873511596,0.71714,115810.0,115800.0,0.1469]
[1755873511895,0.71714,115810.0,115800.0,0.24581]
[1755873512297,0.71714,115810.0,115800.0,0.0012]
[1755873512495,0.71714,115810.0,115800.0,0.1479]
[1755873512690,0.71714,115810.0,115800.0,0.0012]
[1755873513086,0.71714,115810.0,115800.0,0.24581]
[1755873513294,0.71714,115810.0,115800.0,0.31434]
[1755873513498,0.71714,115810.0,115800.0,0.5470483]
[1755873513699,0.71714,115810.0,115800.0,0.46068]
[1755873514199,0.71714,115810.0,115800.0,0.31434]
[1755873514497,0.71714,115810.0,115800.0,0.24581]
[1755873514904,0.71714,115810.0,115800.0,0.46068]
[1755873515096,0.2504,115810.0,115800.0,0.5470482]
[1755873515295,0.39769,115810.0,115800.0,0.46068]
[1755873515597,0.49235,115810.0,115800.0,0.5470482]
[1755873515790,0.39769,115810.0,115800.0,0.5470482]
[1755873515986,0.49235,115810.0,115800.0,0.5470482]
[1755873516190,0.71718,115810.0,115800.0,1.7980082]
[1755873516391,0.71718,115810.0,115800.0,1.6526682]
[1755873516899,4e-05,115810.0,115800.0,2.0488082]
[1755873517493,0.0947,115810.0,115800.0,1.96444]
[1755873517887,4e-05,115810.0,115800.0,1.96444]
[1755873518092,4e-05,115810.0,115800.0,2.63237939]
[1755873518292,4e-05,115810.0,115800.0,2.0478081]
[1755873518502,4e-05,115810.0,115800.0,2.63137939]
[1755873518804,0.46674,115820.0,115810.0,0.45948]
[1755873519390,0.46674,115820.0,115810.0,0.06853]
[1755873519595,0.46674,115820.0,115810.0,0.21523]
[1755873519797,0.46674,115820.0,115810.0,0.31314]
[1755873519999,0.46714,115820.0,115810.0,0.31334]
[1755873520498,0.46714,115820.0,115810.0,0.5460395]
[1755873520499,0.39769,115820.0,115810.0,0.5460395]
[1755873520801,0.0004,115820.0,115810.0,1.29125129]
[1755873521203,0.24235,115820.0,115810.0,1.29125129]
[1755873521389,0.24235,115820.0,115810.0,0.70968]
[1755873521590,0.46714,115820.0,115810.0,0.70968]
[1755873522098,0.46714,115820.0,115810.0,0.45968]
[1755873522305,0.46714,115820.0,115810.0,1.56206]
[1755873522601,0.46714,115820.0,115810.0,1.7084]
[1755873522805,0.14769,115820.0,115810.0,1.7084]
[1755873523006,0.0004,115820.0,115810.0,2.62633079]
[1755873523206,0.11215696,115830.0,115820.0,0.086352]
[1755873523503,0.11405749,115840.0,115830.0,0.45948]
[1755873523806,0.60057837,115860.0,115830.0,0.45948]
[1755873523807,0.15954708,115860.0,115840.0,0.46989]
[1755873524002,0.25420708,115860.0,115850.0,1.62022]
[1755873524200,0.25420708,115860.0,115850.0,1.65257527]
[1755873524597,0.11366708,115860.0,115850.0,1.65257527]
[1755873525004,0.01900708,115860.0,115850.0,1.65257527]
[1755873525200,0.2352,115870.0,115860.0,0.46989]
[1755873525397,0.2352,115870.0,115850.0,1.72198228]
[1755873525398,0.38249,115860.0,115850.0,1.72198228]
[1755873525601,0.38249,115860.0,115850.0,1.35000228]
[1755873525906,0.46674,115860.0,115850.0,1.35000228]
[1755873526101,0.46674,115860.0,115850.0,0.10176228]
[1755873526305,0.92623129,115860.0,115840.0,1.61942]
[1755873526501,0.46714,115850.0,115840.0,1.47328]
[1755873526908,0.0004,115850.0,115840.0,1.86962]
[1755873527807,0.2317,115850.0,115840.0,1.86962]
[1755873527998,0.45753,115850.0,115840.0,1.90161353]
[1755873528204,0.0004,115850.0,115840.0,1.90161353]
[1755873528407,0.13788,115850.0,115840.0,1.90161353]
[1755873528802,0.36995,115850.0,115840.0,1.90161353]
[1755873529209,0.45753,115850.0,115840.0,0.81372785]
[1755873529410,0.45753,115850.0,115840.0,2.05980785]
[1755873529813,0.22546,115850.0,115840.0,2.06180785]
[1755873530019,0.36995,115850.0,115840.0,2.06280785]
[1755873530501,0.45753,115850.0,115840.0,2.06280785]
[1755873530908,0.45753,115850.0,115840.0,1.81280785]
[1755873531111,0.70753,115850.0,115840.0,1.66582785]
[1755873531606,1.37543069,115850.0,115840.0,0.19474785]
[1755873531814,1.37543069,115850.0,115840.0,0.10339785]
[1755873532113,0.70753,115850.0,115840.0,0.10339785]
[1755873532299,0.70753,115850.0,115840.0,0.19474785]
[1755873532505,0.13788,115850.0,115840.0,0.80636785]
[1755873532704,0.0004,115850.0,115840.0,1.38793914]
[1755873533205,0.0004,115850.0,115840.0,0.80636785]
[1755873533511,0.2317,115850.0,115840.0,0.80636785]
[1755873533707,0.45753,115850.0,115840.0,0.80636785]
[1755873534112,0.45753,115850.0,115840.0,0.55636785]
[1755873534314,0.45753,115850.0,115840.0,1.66042785]
[1755873534504,0.13788,115850.0,115840.0,1.80056785]
[1755873535020,0.0004,115850.0,115840.0,2.63213914]
[1755873535217,0.0004,115850.0,115840.0,2.05056785]
[1755873535716,0.70753,115850.0,115840.0,1.80056785]
[1755873535914,0.70753,115850.0,115840.0,1.58092785]
[1755873536314,0.70753,115850.0,115840.0,0.33728785]
[1755873536818,0.70753,115850.0,115840.0,0.55636785]
[1755873537205,1.37543029,115850.0,115840.0,0.10339785]
[1755873537405,0.70753,115850.0,115840.0,0.27368785]
[1755873537610,0.13788,115850.0,115840.0,2.04928785]
[1755873537913,0.45713,115850.0,115840.0,0.55616785]
[1755873538115,0.793459,115850.0,115840.0,0.10319785]
[1755873538310,0.70713,115850.0,115840.0,0.10319785]
[1755873538508,0.70713,115850.0,115840.0,0.41602785]
[1755873538707,0.70713,115850.0,115840.0,0.55616785]
[1755873539418,0.793459,115850.0,115840.0,0.10319785]
[1755873539713,0.70713,115850.0,115840.0,0.41602785]
[1755873540221,0.7934588,115850.0,115840.0,0.10319785]
[1755873540422,1.37503009,115850.0,115840.0,0.10139785]
[1755873540615,1.37503009,115850.0,115840.0,0.07120432]
[1755873541013,0.31888,115850.0,115840.0,0.52417432]
[1755873541215,0.45713,115850.0,115840.0,0.5566131]
[1755873541516,0.36955,115860.0,115850.0,0.45297]
[1755873542017,0.45713,115860.0,115850.0,0.45297]
[1755873542416,0.45713,115860.0,115850.0,0.31283]
[1755873542607,0.45713,115860.0,115850.0,0.23389]
[1755873542809,0.45713,115850.0,115840.0,1.7062631]
[1755873543211,1.37503049,115850.0,115840.0,0.1036431]
[1755873543422,1.37503049,115850.0,115840.0,0.1026431]
[1755873543918,1.03195659,115850.0,115800.0,0.36162]
[1755873544123,0.31965,115790.0,115780.0,0.28770138]
[1755873544327,1.12507499,115790.0,115780.0,0.01741138]
[1755873544523,0.45713,115770.0,115760.0,0.01767302]
[1755873544712,0.70713,115770.0,115760.0,0.01767302]
[1755873544911,0.70713,115770.0,115760.0,0.09135]
[1755873544912,1.28870129,115770.0,115760.0,0.09135]
[1755873545122,0.45613,115760.0,115750.0,0.01716077]
[1755873545319,0.13648,115760.0,115750.0,0.50131835]
[1755873545619,0.98761739,115760.0,115750.0,0.04834835]
[1755873545822,0.98761739,115760.0,115750.0,0.03118758]
[1755873545823,0.90122129,115760.0,115750.0,0.03118758]